Workbook

Sheet Verlauf relative Häufigkeit
B1: Empirisches Gesetz der großen Zahlen
B3: Anzahl der Würfe: | E3: n = | F3: 10000 | H3: =IF(F3<>"",HYPERLINK("#B"&MATCH(F3,B22:B10115,0)+21,"(Klick hier: Diese Zeile unten anzeigen!)"),"") -> (Klick hier: Diese Zeile unten anzeigen!)
B21: n | C21: Würfel- ergebnis | D21: Hn(1) | E21: hn(1) | F21: Hn(2) | G21: hn(2) | H21: Hn(3) | I21: hn(3) | J21: Hn(4,5,6) | K21: hn(4,5,6)
B22: 1 | C22: =Urliste!C4 -> 1 | D22: =IF(C22=1,1,0) -> 1 | E22: =D22/B22 -> 1 | F22: =IF(C22=2,1,0) -> 0 | G22: =F22/B22 -> 0 | H22: =IF(C22=3,1,0) -> 0 | I22: =H22/B22 -> 0 | J22: =IF(C22>3,1,0) -> 0 | K22: =J22/B22 -> 0 | L22: =SUM(D22,J22,H22,F22) -> 1 | M22: =SUM(K22,I22,G22,E22) -> 1
B23: 2 | C23: =Urliste!C5 -> 1 | D23: =IF(C23=1,D22+1,D22) -> 2 | E23: =D23/B23 -> 1 | F23: =IF(C23=2,F22+1,F22) -> 0 | G23: =F23/B23 -> 0 | H23: =IF(C23=3,H22+1,H22) -> 0 | I23: =H23/B23 -> 0 | J23: =IF(C23>3,J22+1,J22) -> 0 | K23: =J23/B23 -> 0 | L23: =SUM(D23,J23,H23,F23) -> 2 | M23: =SUM(K23,I23,G23,E23) -> 1
B24: 3 | C24: =Urliste!C6 -> 1 | D24: =IF(C24=1,D23+1,D23) -> 3 | E24: 1 | F24: =IF(C24=2,F23+1,F23) -> 0 | G24: =F24/B24 -> 0 | H24: =IF(C24=3,H23+1,H23) -> 0 | I24: =H24/B24 -> 0 | J24: =IF(C24>3,J23+1,J23) -> 0 | K24: =J24/B24 -> 0 | L24: 3 | M24: 1
B25: 4 | C25: =Urliste!C7 -> 3 | D25: 3 | E25: 0.75 | F25: 0 | G25: 0 | H25: 1 | I25: 0.25 | J25: 0 | K25: 0 | L25: 4 | M25: 1
B26: 5 | C26: =Urliste!C8 -> 5 | D26: 3 | E26: 0.6 | F26: 0 | G26: 0 | H26: =IF(C26=3,H25+1,H25) -> 1 | I26: =H26/B26 -> 0.2 | J26: =IF(C26>3,J25+1,J25) -> 1 | K26: =J26/B26 -> 0.2 | L26: =SUM(D26,J26,H26,F26) -> 5 | M26: =SUM(K26,I26,G26,E26) -> 1
B27: 6 | C27: =Urliste!C9 -> 6 | D27: 3 | E27: 0.5 | F27: 0 | G27: 0 | H27: 1 | I27: 0.1666666667 | J27: 2 | K27: 0.3333333333 | L27: 6 | M27: 1
B28: 7 | C28: =Urliste!C10 -> 6 | D28: 3 | E28: 0.4285714286 | F28: 0 | G28: 0 | H28: 1 | I28: 0.1428571429 | J28: 3 | K28: 0.4285714286 | L28: 7 | M28: 1
B29: 8 | C29: =Urliste!C11 -> 6 | D29: 3 | E29: 0.375 | F29: 0 | G29: 0 | H29: 1 | I29: 0.125 | J29: 4 | K29: 0.5 | L29: 8 | M29: 1
B30: 9 | C30: =Urliste!C12 -> 2 | D30: 3 | E30: 0.3333333333 | F30: 1 | G30: 0.1111111111 | H30: 1 | I30: 0.1111111111 | J30: 4 | K30: 0.4444444444 | L30: 9 | M30: 1
B31: 10 | C31: =Urliste!C13 -> 2 | D31: 3 | E31: 0.3 | F31: 2 | G31: 0.2 | H31: 1 | I31: 0.1 | J31: 4 | K31: 0.4 | L31: 10 | M31: 1
B32: 11 | C32: =Urliste!C14 -> 6 | D32: 3 | E32: 0.2727272727 | F32: 2 | G32: 0.1818181818 | H32: 1 | I32: 0.09090909091 | J32: 5 | K32: 0.4545454545 | L32: 11 | M32: 1
B33: 12 | C33: =Urliste!C15 -> 1 | D33: 4 | E33: 0.3333333333 | F33: 2 | G33: 0.1666666667 | H33: 1 | I33: 0.08333333333 | J33: 5 | K33: 0.4166666667 | L33: 12 | M33: 1
B34: 13 | C34: =Urliste!C16 -> 1 | D34: 5 | E34: 0.3846153846 | F34: 2 | G34: 0.1538461538 | H34: 1 | I34: 0.07692307692 | J34: 5 | K34: 0.3846153846 | L34: 13 | M34: 1
B35: 14 | C35: =Urliste!C17 -> 3 | D35: 5 | E35: 0.3571428571 | F35: 2 | G35: 0.1428571429 | H35: 2 | I35: 0.1428571429 | J35: 5 | K35: 0.3571428571 | L35: 14 | M35: 1
B36: 15 | C36: =Urliste!C18 -> 5 | D36: 5 | E36: 0.3333333333 | F36: 2 | G36: 0.1333333333 | H36: 2 | I36: 0.1333333333 | J36: 6 | K36: 0.4 | L36: 15 | M36: 1
B37: 16 | C37: =Urliste!C19 -> 5 | D37: 5 | E37: 0.3125 | F37: 2 | G37: 0.125 | H37: 2 | I37: 0.125 | J37: 7 | K37: 0.4375 | L37: 16 | M37: 1
B38: 17 | C38: =Urliste!C20 -> 2 | D38: =IF(C38=1,D37+1,D37) -> 5 | E38: 0.2941176471 | F38: 3 | G38: 0.1764705882 | H38: 2 | I38: 0.1176470588 | J38: 7 | K38: 0.4117647059 | L38: 17 | M38: 1
B39: 18 | C39: =Urliste!C21 -> 1 | D39: 6 | E39: 0.3333333333 | F39: 3 | G39: 0.1666666667 | H39: 2 | I39: 0.1111111111 | J39: 7 | K39: 0.3888888889 | L39: 18 | M39: 1
B40: 19 | C40: =Urliste!C22 -> 6 | D40: 6 | E40: 0.3157894737 | F40: 3 | G40: 0.1578947368 | H40: 2 | I40: 0.1052631579 | J40: 8 | K40: 0.4210526316 | L40: 19 | M40: 1
B41: 20 | C41: =Urliste!C23 -> 1 | D41: 7 | E41: 0.35 | F41: 3 | G41: 0.15 | H41: 2 | I41: 0.1 | J41: 8 | K41: 0.4 | L41: 20 | M41: 1
B42: 21 | C42: =Urliste!C24 -> 4 | D42: 7 | E42: 0.3333333333 | F42: 3 | G42: 0.1428571429 | H42: 2 | I42: 0.09523809524 | J42: 9 | K42: 0.4285714286 | L42: 21 | M42: 1
B43: 22 | C43: =Urliste!C25 -> 2 | D43: 7 | E43: 0.3181818182 | F43: 4 | G43: 0.1818181818 | H43: 2 | I43: 0.09090909091 | J43: 9 | K43: 0.4090909091 | L43: 22 | M43: 1
B44: 23 | C44: =Urliste!C26 -> 2 | D44: 7 | E44: 0.3043478261 | F44: 5 | G44: 0.2173913043 | H44: 2 | I44: 0.08695652174 | J44: 9 | K44: 0.3913043478 | L44: 23 | M44: 1
B45: 24 | C45: =Urliste!C27 -> 6 | D45: 7 | E45: 0.2916666667 | F45: 5 | G45: 0.2083333333 | H45: 2 | I45: 0.08333333333 | J45: 10 | K45: 0.4166666667 | L45: 24 | M45: 1
B46: 25 | C46: =Urliste!C28 -> 3 | D46: 7 | E46: 0.28 | F46: 5 | G46: 0.2 | H46: 3 | I46: 0.12 | J46: 10 | K46: 0.4 | L46: 25 | M46: 1
B47: 26 | C47: =Urliste!C29 -> 3 | D47: 7 | E47: 0.2692307692 | F47: 5 | G47: 0.1923076923 | H47: 4 | I47: 0.1538461538 | J47: 10 | K47: 0.3846153846 | L47: 26 | M47: 1
B48: 27 | C48: =Urliste!C30 -> 4 | D48: 7 | E48: 0.2592592593 | F48: 5 | G48: 0.1851851852 | H48: 4 | I48: 0.1481481481 | J48: 11 | K48: 0.4074074074 | L48: 27 | M48: 1
B49: 28 | C49: =Urliste!C31 -> 4 | D49: 7 | E49: 0.25 | F49: 5 | G49: 0.1785714286 | H49: 4 | I49: 0.1428571429 | J49: 12 | K49: 0.4285714286 | L49: 28 | M49: 1
B50: 29 | C50: =Urliste!C32 -> 4 | D50: 7 | E50: 0.2413793103 | F50: 5 | G50: 0.1724137931 | H50: 4 | I50: 0.1379310345 | J50: 13 | K50: 0.4482758621 | L50: 29 | M50: 1
B51: 30 | C51: =Urliste!C33 -> 5 | D51: 7 | E51: 0.2333333333 | F51: 5 | G51: 0.1666666667 | H51: 4 | I51: 0.1333333333 | J51: 14 | K51: 0.4666666667 | L51: 30 | M51: 1
B52: 31 | C52: =Urliste!C34 -> 3 | D52: 7 | E52: 0.2258064516 | F52: 5 | G52: 0.1612903226 | H52: 5 | I52: 0.1612903226 | J52: 14 | K52: 0.4516129032 | L52: 31 | M52: 1
B53: 32 | C53: =Urliste!C35 -> 3 | D53: 7 | E53: 0.21875 | F53: 5 | G53: 0.15625 | H53: 6 | I53: 0.1875 | J53: 14 | K53: 0.4375 | L53: 32 | M53: 1
B54: 33 | C54: =Urliste!C36 -> 3 | D54: 7 | E54: 0.2121212121 | F54: 5 | G54: 0.1515151515 | H54: 7 | I54: 0.2121212121 | J54: 14 | K54: 0.4242424242 | L54: 33 | M54: 1
B55: 34 | C55: =Urliste!C37 -> 2 | D55: 7 | E55: 0.2058823529 | F55: 6 | G55: 0.1764705882 | H55: 7 | I55: 0.2058823529 | J55: 14 | K55: 0.4117647059 | L55: 34 | M55: 1
B56: 35 | C56: =Urliste!C38 -> 4 | D56: 7 | E56: 0.2 | F56: 6 | G56: 0.1714285714 | H56: 7 | I56: 0.2 | J56: 15 | K56: 0.4285714286 | L56: 35 | M56: 1
B57: 36 | C57: =Urliste!C39 -> 5 | D57: 7 | E57: 0.1944444444 | F57: 6 | G57: 0.1666666667 | H57: 7 | I57: 0.1944444444 | J57: 16 | K57: 0.4444444444 | L57: 36 | M57: 1
B58: 37 | C58: =Urliste!C40 -> 5 | D58: 7 | E58: 0.1891891892 | F58: 6 | G58: 0.1621621622 | H58: 7 | I58: 0.1891891892 | J58: 17 | K58: 0.4594594595 | L58: 37 | M58: 1
B59: 38 | C59: =Urliste!C41 -> 2 | D59: 7 | E59: 0.1842105263 | F59: 7 | G59: 0.1842105263 | H59: 7 | I59: 0.1842105263 | J59: 17 | K59: 0.4473684211 | L59: 38 | M59: 1
B60: 39 | C60: =Urliste!C42 -> 2 | D60: 7 | E60: 0.1794871795 | F60: 8 | G60: 0.2051282051 | H60: 7 | I60: 0.1794871795 | J60: 17 | K60: 0.4358974359 | L60: 39 | M60: 1
B61: 40 | C61: =Urliste!C43 -> 5 | D61: 7 | E61: 0.175 | F61: 8 | G61: 0.2 | H61: 7 | I61: 0.175 | J61: 18 | K61: 0.45 | L61: 40 | M61: 1
B62: 41 | C62: =Urliste!C44 -> 1 | D62: 8 | E62: 0.1951219512 | F62: 8 | G62: 0.1951219512 | H62: 7 | I62: 0.1707317073 | J62: 18 | K62: 0.4390243902 | L62: 41 | M62: 1
B63: 42 | C63: =Urliste!C45 -> 1 | D63: 9 | E63: 0.2142857143 | F63: 8 | G63: 0.1904761905 | H63: 7 | I63: 0.1666666667 | J63: 18 | K63: 0.4285714286 | L63: 42 | M63: 1
B64: 43 | C64: =Urliste!C46 -> 3 | D64: 9 | E64: 0.2093023256 | F64: 8 | G64: 0.1860465116 | H64: 8 | I64: 0.1860465116 | J64: 18 | K64: 0.4186046512 | L64: 43 | M64: 1
B65: 44 | C65: =Urliste!C47 -> 6 | D65: 9 | E65: 0.2045454545 | F65: 8 | G65: 0.1818181818 | H65: 8 | I65: 0.1818181818 | J65: 19 | K65: 0.4318181818 | L65: 44 | M65: 1
B66: 45 | C66: =Urliste!C48 -> 6 | D66: 9 | E66: 0.2 | F66: 8 | G66: 0.1777777778 | H66: 8 | I66: 0.1777777778 | J66: 20 | K66: 0.4444444444 | L66: 45 | M66: 1
B67: 46 | C67: =Urliste!C49 -> 1 | D67: 10 | E67: 0.2173913043 | F67: 8 | G67: 0.1739130435 | H67: 8 | I67: 0.1739130435 | J67: 20 | K67: 0.4347826087 | L67: 46 | M67: 1
B68: 47 | C68: =Urliste!C50 -> 3 | D68: 10 | E68: 0.2127659574 | F68: 8 | G68: 0.170212766 | H68: 9 | I68: 0.1914893617 | J68: 20 | K68: 0.4255319149 | L68: 47 | M68: 1
B69: 48 | C69: =Urliste!C51 -> 1 | D69: 11 | E69: 0.2291666667 | F69: 8 | G69: 0.1666666667 | H69: 9 | I69: 0.1875 | J69: 20 | K69: 0.4166666667 | L69: 48 | M69: 1
B70: 49 | C70: =Urliste!C52 -> 3 | D70: 11 | E70: 0.2244897959 | F70: 8 | G70: 0.1632653061 | H70: 10 | I70: 0.2040816327 | J70: 20 | K70: 0.4081632653 | L70: 49 | M70: 1
B71: 50 | C71: =Urliste!C53 -> 4 | D71: 11 | E71: 0.22 | F71: 8 | G71: 0.16 | H71: 10 | I71: 0.2 | J71: 21 | K71: 0.42 | L71: 50 | M71: 1
B72: 51 | C72: =Urliste!C54 -> 3 | D72: 11 | E72: 0.2156862745 | F72: 8 | G72: 0.1568627451 | H72: 11 | I72: 0.2156862745 | J72: 21 | K72: 0.4117647059 | L72: 51 | M72: 1
B73: 52 | C73: =Urliste!C55 -> 1 | D73: 12 | E73: 0.2307692308 | F73: 8 | G73: 0.1538461538 | H73: 11 | I73: 0.2115384615 | J73: 21 | K73: 0.4038461538 | L73: 52 | M73: 1
B74: 53 | C74: =Urliste!C56 -> 4 | D74: 12 | E74: 0.2264150943 | F74: 8 | G74: 0.1509433962 | H74: 11 | I74: 0.2075471698 | J74: 22 | K74: 0.4150943396 | L74: 53 | M74: 1
B75: 54 | C75: =Urliste!C57 -> 1 | D75: 13 | E75: 0.2407407407 | F75: 8 | G75: 0.1481481481 | H75: 11 | I75: 0.2037037037 | J75: 22 | K75: 0.4074074074 | L75: 54 | M75: 1
B76: 55 | C76: =Urliste!C58 -> 1 | D76: 14 | E76: 0.2545454545 | F76: 8 | G76: 0.1454545455 | H76: 11 | I76: 0.2 | J76: 22 | K76: 0.4 | L76: 55 | M76: 1
B77: 56 | C77: =Urliste!C59 -> 4 | D77: 14 | E77: 0.25 | F77: 8 | G77: 0.1428571429 | H77: 11 | I77: 0.1964285714 | J77: 23 | K77: 0.4107142857 | L77: 56 | M77: 1
B78: 57 | C78: =Urliste!C60 -> 2 | D78: 14 | E78: 0.2456140351 | F78: 9 | G78: 0.1578947368 | H78: 11 | I78: 0.1929824561 | J78: 23 | K78: 0.4035087719 | L78: 57 | M78: 1
B79: 58 | C79: =Urliste!C61 -> 5 | D79: 14 | E79: 0.2413793103 | F79: 9 | G79: 0.1551724138 | H79: 11 | I79: 0.1896551724 | J79: 24 | K79: 0.4137931034 | L79: 58 | M79: 1
B80: 59 | C80: =Urliste!C62 -> 1 | D80: 15 | E80: 0.2542372881 | F80: 9 | G80: 0.1525423729 | H80: 11 | I80: 0.186440678 | J80: 24 | K80: 0.406779661 | L80: 59 | M80: 1
B81: 60 | C81: =Urliste!C63 -> 1 | D81: 16 | E81: 0.2666666667 | F81: 9 | G81: 0.15 | H81: 11 | I81: 0.1833333333 | J81: 24 | K81: 0.4 | L81: 60 | M81: 1
B82: 61 | C82: =Urliste!C64 -> 1 | D82: 17 | E82: 0.2786885246 | F82: 9 | G82: 0.1475409836 | H82: 11 | I82: 0.1803278689 | J82: 24 | K82: 0.393442623 | L82: 61 | M82: 1
B83: 62 | C83: =Urliste!C65 -> 4 | D83: 17 | E83: 0.2741935484 | F83: 9 | G83: 0.1451612903 | H83: 11 | I83: 0.1774193548 | J83: 25 | K83: 0.4032258065 | L83: 62 | M83: 1
B84: 63 | C84: =Urliste!C66 -> 4 | D84: 17 | E84: 0.2698412698 | F84: 9 | G84: 0.1428571429 | H84: 11 | I84: 0.1746031746 | J84: 26 | K84: 0.4126984127 | L84: 63 | M84: 1
B85: 64 | C85: =Urliste!C67 -> 1 | D85: 18 | E85: 0.28125 | F85: 9 | G85: 0.140625 | H85: 11 | I85: 0.171875 | J85: 26 | K85: 0.40625 | L85: 64 | M85: 1
B86: 65 | C86: =Urliste!C68 -> 6 | D86: 18 | E86: 0.2769230769 | F86: 9 | G86: 0.1384615385 | H86: 11 | I86: 0.1692307692 | J86: 27 | K86: 0.4153846154 | L86: 65 | M86: 1
B87: 66 | C87: =Urliste!C69 -> 5 | D87: 18 | E87: =D87/B87 -> 0.2727272727 | F87: 9 | G87: 0.1363636364 | H87: 11 | I87: 0.1666666667 | J87: 28 | K87: 0.4242424242 | L87: 66 | M87: 1
B88: 67 | C88: =Urliste!C70 -> 5 | D88: 18 | E88: 0.2686567164 | F88: =IF(C88=2,F87+1,F87) -> 9 | G88: =F88/B88 -> 0.1343283582 | H88: 11 | I88: 0.1641791045 | J88: 29 | K88: 0.4328358209 | L88: 67 | M88: 1
B89: 68 | C89: =Urliste!C71 -> 4 | D89: 18 | E89: 0.2647058824 | F89: 9 | G89: 0.1323529412 | H89: 11 | I89: 0.1617647059 | J89: 30 | K89: 0.4411764706 | L89: 68 | M89: 1
B90: 69 | C90: =Urliste!C72 -> 2 | D90: 18 | E90: 0.2608695652 | F90: 10 | G90: 0.1449275362 | H90: =IF(C90=3,H89+1,H89) -> 11 | I90: =H90/B90 -> 0.1594202899 | J90: =IF(C90>3,J89+1,J89) -> 30 | K90: =J90/B90 -> 0.4347826087 | L90: =SUM(D90,J90,H90,F90) -> 69 | M90: =SUM(K90,I90,G90,E90) -> 1
B91: 70 | C91: =Urliste!C73 -> 2 | D91: 18 | E91: 0.2571428571 | F91: 11 | G91: 0.1571428571 | H91: 11 | I91: 0.1571428571 | J91: 30 | K91: 0.4285714286 | L91: 70 | M91: 1
B92: 71 | C92: =Urliste!C74 -> 3 | D92: 18 | E92: 0.2535211268 | F92: 11 | G92: 0.1549295775 | H92: 12 | I92: 0.1690140845 | J92: 30 | K92: 0.4225352113 | L92: 71 | M92: 1
B93: 72 | C93: =Urliste!C75 -> 5 | D93: 18 | E93: 0.25 | F93: 11 | G93: 0.1527777778 | H93: 12 | I93: 0.1666666667 | J93: 31 | K93: 0.4305555556 | L93: 72 | M93: 1
B94: 73 | C94: =Urliste!C76 -> 4 | D94: 18 | E94: 0.2465753425 | F94: 11 | G94: 0.1506849315 | H94: 12 | I94: 0.1643835616 | J94: 32 | K94: 0.4383561644 | L94: 73 | M94: 1
B95: 74 | C95: =Urliste!C77 -> 4 | D95: 18 | E95: 0.2432432432 | F95: 11 | G95: 0.1486486486 | H95: 12 | I95: 0.1621621622 | J95: 33 | K95: 0.4459459459 | L95: 74 | M95: 1
B96: 75 | C96: =Urliste!C78 -> 2 | D96: 18 | E96: 0.24 | F96: 12 | G96: 0.16 | H96: 12 | I96: 0.16 | J96: 33 | K96: 0.44 | L96: 75 | M96: 1
B97: 76 | C97: =Urliste!C79 -> 6 | D97: 18 | E97: 0.2368421053 | F97: 12 | G97: 0.1578947368 | H97: 12 | I97: 0.1578947368 | J97: 34 | K97: 0.4473684211 | L97: 76 | M97: 1
B98: 77 | C98: =Urliste!C80 -> 1 | D98: 19 | E98: 0.2467532468 | F98: 12 | G98: 0.1558441558 | H98: 12 | I98: 0.1558441558 | J98: 34 | K98: 0.4415584416 | L98: 77 | M98: 1
B99: 78 | C99: =Urliste!C81 -> 2 | D99: 19 | E99: 0.2435897436 | F99: 13 | G99: 0.1666666667 | H99: 12 | I99: 0.1538461538 | J99: 34 | K99: 0.4358974359 | L99: 78 | M99: 1
B100: 79 | C100: =Urliste!C82 -> 1 | D100: 20 | E100: 0.253164557 | F100: 13 | G100: 0.164556962 | H100: 12 | I100: 0.1518987342 | J100: 34 | K100: 0.4303797468 | L100: 79 | M100: 1
B101: 80 | C101: =Urliste!C83 -> 5 | D101: 20 | E101: 0.25 | F101: 13 | G101: 0.1625 | H101: 12 | I101: 0.15 | J101: 35 | K101: 0.4375 | L101: 80 | M101: 1
B102: 81 | C102: =Urliste!C84 -> 6 | D102: =IF(C102=1,D101+1,D101) -> 20 | E102: 0.2469135802 | F102: 13 | G102: 0.1604938272 | H102: 12 | I102: 0.1481481481 | J102: 36 | K102: 0.4444444444 | L102: 81 | M102: 1
B103: 82 | C103: =Urliste!C85 -> 4 | D103: 20 | E103: 0.243902439 | F103: 13 | G103: 0.1585365854 | H103: 12 | I103: 0.1463414634 | J103: 37 | K103: 0.4512195122 | L103: 82 | M103: 1
B104: 83 | C104: =Urliste!C86 -> 2 | D104: 20 | E104: 0.2409638554 | F104: 14 | G104: 0.1686746988 | H104: 12 | I104: 0.1445783133 | J104: 37 | K104: 0.4457831325 | L104: 83 | M104: 1
B105: 84 | C105: =Urliste!C87 -> 2 | D105: 20 | E105: 0.2380952381 | F105: 15 | G105: 0.1785714286 | H105: 12 | I105: 0.1428571429 | J105: 37 | K105: 0.4404761905 | L105: 84 | M105: 1
B106: 85 | C106: =Urliste!C88 -> 1 | D106: 21 | E106: 0.2470588235 | F106: 15 | G106: 0.1764705882 | H106: 12 | I106: 0.1411764706 | J106: 37 | K106: 0.4352941176 | L106: 85 | M106: 1
B107: 86 | C107: =Urliste!C89 -> 2 | D107: 21 | E107: 0.2441860465 | F107: 16 | G107: 0.1860465116 | H107: 12 | I107: 0.1395348837 | J107: 37 | K107: 0.4302325581 | L107: 86 | M107: 1
B108: 87 | C108: =Urliste!C90 -> 5 | D108: 21 | E108: 0.2413793103 | F108: 16 | G108: 0.183908046 | H108: 12 | I108: 0.1379310345 | J108: 38 | K108: 0.4367816092 | L108: 87 | M108: 1
B109: 88 | C109: =Urliste!C91 -> 3 | D109: 21 | E109: 0.2386363636 | F109: 16 | G109: 0.1818181818 | H109: 13 | I109: 0.1477272727 | J109: 38 | K109: 0.4318181818 | L109: 88 | M109: 1
B110: 89 | C110: =Urliste!C92 -> 5 | D110: 21 | E110: 0.2359550562 | F110: 16 | G110: 0.1797752809 | H110: 13 | I110: 0.1460674157 | J110: 39 | K110: 0.4382022472 | L110: 89 | M110: 1
B111: 90 | C111: =Urliste!C93 -> 6 | D111: 21 | E111: 0.2333333333 | F111: 16 | G111: 0.1777777778 | H111: 13 | I111: 0.1444444444 | J111: 40 | K111: 0.4444444444 | L111: 90 | M111: 1
B112: 91 | C112: =Urliste!C94 -> 6 | D112: 21 | E112: 0.2307692308 | F112: 16 | G112: 0.1758241758 | H112: 13 | I112: 0.1428571429 | J112: 41 | K112: 0.4505494505 | L112: 91 | M112: 1
B113: 92 | C113: =Urliste!C95 -> 3 | D113: 21 | E113: 0.2282608696 | F113: 16 | G113: 0.1739130435 | H113: 14 | I113: 0.152173913 | J113: 41 | K113: 0.4456521739 | L113: 92 | M113: 1
B114: 93 | C114: =Urliste!C96 -> 6 | D114: =IF(C114=1,D113+1,D113) -> 21 | E114: 0.2258064516 | F114: 16 | G114: 0.1720430108 | H114: 14 | I114: 0.1505376344 | J114: 42 | K114: 0.4516129032 | L114: 93 | M114: 1
B115: 94 | C115: =Urliste!C97 -> 2 | D115: =IF(C115=1,D114+1,D114) -> 21 | E115: 0.2234042553 | F115: 17 | G115: 0.1808510638 | H115: 14 | I115: 0.1489361702 | J115: 42 | K115: 0.4468085106 | L115: 94 | M115: 1
B116: 95 | C116: =Urliste!C98 -> 3 | D116: 21 | E116: 0.2210526316 | F116: 17 | G116: 0.1789473684 | H116: 15 | I116: 0.1578947368 | J116: 42 | K116: 0.4421052632 | L116: 95 | M116: 1
B117: 96 | C117: =Urliste!C99 -> 3 | D117: 21 | E117: 0.21875 | F117: 17 | G117: 0.1770833333 | H117: 16 | I117: 0.1666666667 | J117: 42 | K117: 0.4375 | L117: 96 | M117: 1
B118: 97 | C118: =Urliste!C100 -> 1 | D118: 22 | E118: 0.2268041237 | F118: 17 | G118: 0.175257732 | H118: 16 | I118: 0.1649484536 | J118: 42 | K118: 0.4329896907 | L118: 97 | M118: 1
B119: 98 | C119: =Urliste!C101 -> 1 | D119: 23 | E119: 0.2346938776 | F119: 17 | G119: 0.1734693878 | H119: 16 | I119: 0.1632653061 | J119: 42 | K119: 0.4285714286 | L119: 98 | M119: 1
B120: 99 | C120: =Urliste!C102 -> 6 | D120: =IF(C120=1,D119+1,D119) -> 23 | E120: 0.2323232323 | F120: 17 | G120: 0.1717171717 | H120: 16 | I120: 0.1616161616 | J120: 43 | K120: 0.4343434343 | L120: 99 | M120: 1
B121: 100 | C121: =Urliste!C103 -> 5 | D121: =IF(C121=1,D120+1,D120) -> 23 | E121: 0.23 | F121: 17 | G121: 0.17 | H121: 16 | I121: 0.16 | J121: 44 | K121: 0.44 | L121: 100 | M121: 1
B122: 101 | C122: =Urliste!C104 -> 6 | D122: =IF(C122=1,D121+1,D121) -> 23 | E122: =D122/B122 -> 0.2277227723 | F122: =IF(C122=2,F121+1,F121) -> 17 | G122: =F122/B122 -> 0.1683168317 | H122: 16 | I122: 0.1584158416 | J122: 45 | K122: 0.4455445545 | L122: 101 | M122: 1
B123: 102 | C123: =Urliste!C105 -> 1 | D123: 24 | E123: 0.2352941176 | F123: 17 | G123: 0.1666666667 | H123: 16 | I123: 0.1568627451 | J123: 45 | K123: 0.4411764706 | L123: 102 | M123: 1
B124: 103 | C124: =Urliste!C106 -> 1 | D124: 25 | E124: 0.2427184466 | F124: 17 | G124: 0.1650485437 | H124: 16 | I124: 0.1553398058 | J124: 45 | K124: 0.4368932039 | L124: 103 | M124: 1
B125: 104 | C125: =Urliste!C107 -> 1 | D125: 26 | E125: 0.25 | F125: 17 | G125: 0.1634615385 | H125: 16 | I125: 0.1538461538 | J125: 45 | K125: 0.4326923077 | L125: 104 | M125: 1
B126: 105 | C126: =Urliste!C108 -> 3 | D126: 26 | E126: 0.2476190476 | F126: 17 | G126: 0.1619047619 | H126: 17 | I126: 0.1619047619 | J126: 45 | K126: 0.4285714286 | L126: 105 | M126: 1
B127: 106 | C127: =Urliste!C109 -> 1 | D127: 27 | E127: 0.2547169811 | F127: 17 | G127: 0.1603773585 | H127: 17 | I127: 0.1603773585 | J127: 45 | K127: 0.4245283019 | L127: 106 | M127: 1
B128: 107 | C128: =Urliste!C110 -> 4 | D128: 27 | E128: 0.2523364486 | F128: 17 | G128: 0.1588785047 | H128: 17 | I128: 0.1588785047 | J128: 46 | K128: 0.4299065421 | L128: 107 | M128: 1
B129: 108 | C129: =Urliste!C111 -> 5 | D129: 27 | E129: 0.25 | F129: 17 | G129: 0.1574074074 | H129: 17 | I129: 0.1574074074 | J129: 47 | K129: 0.4351851852 | L129: 108 | M129: 1
B130: 109 | C130: =Urliste!C112 -> 4 | D130: 27 | E130: 0.247706422 | F130: 17 | G130: 0.1559633028 | H130: 17 | I130: 0.1559633028 | J130: 48 | K130: 0.4403669725 | L130: 109 | M130: 1
B131: 110 | C131: =Urliste!C113 -> 3 | D131: 27 | E131: 0.2454545455 | F131: 17 | G131: 0.1545454545 | H131: 18 | I131: 0.1636363636 | J131: 48 | K131: 0.4363636364 | L131: 110 | M131: 1
B132: 111 | C132: =Urliste!C114 -> 4 | D132: 27 | E132: 0.2432432432 | F132: 17 | G132: 0.1531531532 | H132: 18 | I132: 0.1621621622 | J132: 49 | K132: 0.4414414414 | L132: 111 | M132: 1
B133: 112 | C133: =Urliste!C115 -> 2 | D133: 27 | E133: 0.2410714286 | F133: 18 | G133: 0.1607142857 | H133: 18 | I133: 0.1607142857 | J133: 49 | K133: 0.4375 | L133: 112 | M133: 1
B134: 113 | C134: =Urliste!C116 -> 1 | D134: 28 | E134: 0.2477876106 | F134: 18 | G134: 0.1592920354 | H134: 18 | I134: 0.1592920354 | J134: 49 | K134: 0.4336283186 | L134: 113 | M134: 1
B135: 114 | C135: =Urliste!C117 -> 3 | D135: 28 | E135: 0.2456140351 | F135: 18 | G135: 0.1578947368 | H135: 19 | I135: 0.1666666667 | J135: 49 | K135: 0.4298245614 | L135: 114 | M135: 1
B136: 115 | C136: =Urliste!C118 -> 6 | D136: 28 | E136: 0.2434782609 | F136: 18 | G136: 0.1565217391 | H136: 19 | I136: 0.1652173913 | J136: 50 | K136: 0.4347826087 | L136: 115 | M136: 1
B137: 116 | C137: =Urliste!C119 -> 6 | D137: 28 | E137: 0.2413793103 | F137: 18 | G137: 0.1551724138 | H137: 19 | I137: 0.1637931034 | J137: 51 | K137: 0.4396551724 | L137: 116 | M137: 1
B138: 117 | C138: =Urliste!C120 -> 2 | D138: 28 | E138: 0.2393162393 | F138: 19 | G138: 0.1623931624 | H138: 19 | I138: 0.1623931624 | J138: 51 | K138: 0.4358974359 | L138: 117 | M138: 1
B139: 118 | C139: =Urliste!C121 -> 2 | D139: 28 | E139: 0.2372881356 | F139: 20 | G139: 0.1694915254 | H139: 19 | I139: 0.1610169492 | J139: 51 | K139: 0.4322033898 | L139: 118 | M139: 1
B140: 119 | C140: =Urliste!C122 -> 2 | D140: 28 | E140: 0.2352941176 | F140: 21 | G140: 0.1764705882 | H140: 19 | I140: 0.1596638655 | J140: 51 | K140: 0.4285714286 | L140: 119 | M140: 1
B141: 120 | C141: =Urliste!C123 -> 4 | D141: 28 | E141: 0.2333333333 | F141: 21 | G141: 0.175 | H141: 19 | I141: 0.1583333333 | J141: 52 | K141: 0.4333333333 | L141: 120 | M141: 1
B142: 121 | C142: =Urliste!C124 -> 3 | D142: 28 | E142: 0.2314049587 | F142: 21 | G142: 0.173553719 | H142: 20 | I142: 0.1652892562 | J142: 52 | K142: 0.4297520661 | L142: 121 | M142: 1
B143: 122 | C143: =Urliste!C125 -> 2 | D143: 28 | E143: 0.2295081967 | F143: 22 | G143: 0.1803278689 | H143: 20 | I143: 0.1639344262 | J143: 52 | K143: 0.4262295082 | L143: 122 | M143: 1
B144: 123 | C144: =Urliste!C126 -> 2 | D144: 28 | E144: 0.2276422764 | F144: 23 | G144: 0.1869918699 | H144: 20 | I144: 0.162601626 | J144: 52 | K144: 0.4227642276 | L144: 123 | M144: 1
B145: 124 | C145: =Urliste!C127 -> 5 | D145: 28 | E145: 0.2258064516 | F145: 23 | G145: 0.185483871 | H145: 20 | I145: 0.1612903226 | J145: 53 | K145: 0.4274193548 | L145: 124 | M145: 1
B146: 125 | C146: =Urliste!C128 -> 4 | D146: 28 | E146: 0.224 | F146: 23 | G146: 0.184 | H146: 20 | I146: 0.16 | J146: 54 | K146: 0.432 | L146: 125 | M146: 1
B147: 126 | C147: =Urliste!C129 -> 4 | D147: 28 | E147: 0.2222222222 | F147: 23 | G147: 0.1825396825 | H147: 20 | I147: 0.1587301587 | J147: 55 | K147: 0.4365079365 | L147: 126 | M147: 1
B148: 127 | C148: =Urliste!C130 -> 2 | D148: 28 | E148: 0.2204724409 | F148: 24 | G148: 0.188976378 | H148: 20 | I148: 0.157480315 | J148: 55 | K148: 0.4330708661 | L148: 127 | M148: 1
B149: 128 | C149: =Urliste!C131 -> 6 | D149: 28 | E149: 0.21875 | F149: 24 | G149: 0.1875 | H149: 20 | I149: 0.15625 | J149: 56 | K149: 0.4375 | L149: 128 | M149: 1
B150: 129 | C150: =Urliste!C132 -> 2 | D150: 28 | E150: 0.2170542636 | F150: 25 | G150: 0.1937984496 | H150: 20 | I150: 0.1550387597 | J150: 56 | K150: 0.4341085271 | L150: 129 | M150: 1
B151: 130 | C151: =Urliste!C133 -> 6 | D151: 28 | E151: 0.2153846154 | F151: 25 | G151: 0.1923076923 | H151: 20 | I151: 0.1538461538 | J151: 57 | K151: 0.4384615385 | L151: 130 | M151: 1
B152: 131 | C152: =Urliste!C134 -> 1 | D152: 29 | E152: 0.2213740458 | F152: 25 | G152: 0.1908396947 | H152: 20 | I152: 0.1526717557 | J152: 57 | K152: 0.4351145038 | L152: 131 | M152: 1
B153: 132 | C153: =Urliste!C135 -> 3 | D153: 29 | E153: 0.2196969697 | F153: 25 | G153: 0.1893939394 | H153: 21 | I153: 0.1590909091 | J153: 57 | K153: 0.4318181818 | L153: 132 | M153: 1
B154: 133 | C154: =Urliste!C136 -> 3 | D154: 29 | E154: 0.2180451128 | F154: 25 | G154: 0.1879699248 | H154: =IF(C154=3,H153+1,H153) -> 22 | I154: =H154/B154 -> 0.1654135338 | J154: =IF(C154>3,J153+1,J153) -> 57 | K154: =J154/B154 -> 0.4285714286 | L154: =SUM(D154,J154,H154,F154) -> 133 | M154: =SUM(K154,I154,G154,E154) -> 1
B155: 134 | C155: =Urliste!C137 -> 4 | D155: 29 | E155: 0.2164179104 | F155: 25 | G155: 0.1865671642 | H155: 22 | I155: 0.1641791045 | J155: 58 | K155: 0.4328358209 | L155: 134 | M155: 1
B156: 135 | C156: =Urliste!C138 -> 3 | D156: 29 | E156: 0.2148148148 | F156: 25 | G156: 0.1851851852 | H156: 23 | I156: 0.1703703704 | J156: 58 | K156: 0.4296296296 | L156: 135 | M156: 1
B157: 136 | C157: =Urliste!C139 -> 2 | D157: 29 | E157: 0.2132352941 | F157: 26 | G157: 0.1911764706 | H157: 23 | I157: 0.1691176471 | J157: 58 | K157: 0.4264705882 | L157: 136 | M157: 1
B158: 137 | C158: =Urliste!C140 -> 1 | D158: 30 | E158: 0.2189781022 | F158: 26 | G158: 0.1897810219 | H158: 23 | I158: 0.1678832117 | J158: 58 | K158: 0.4233576642 | L158: 137 | M158: 1
B159: 138 | C159: =Urliste!C141 -> 5 | D159: 30 | E159: 0.2173913043 | F159: 26 | G159: 0.1884057971 | H159: 23 | I159: 0.1666666667 | J159: 59 | K159: 0.4275362319 | L159: 138 | M159: 1
B160: 139 | C160: =Urliste!C142 -> 2 | D160: 30 | E160: 0.2158273381 | F160: 27 | G160: 0.1942446043 | H160: 23 | I160: 0.1654676259 | J160: 59 | K160: 0.4244604317 | L160: 139 | M160: 1
B161: 140 | C161: =Urliste!C143 -> 4 | D161: 30 | E161: 0.2142857143 | F161: 27 | G161: 0.1928571429 | H161: 23 | I161: 0.1642857143 | J161: 60 | K161: 0.4285714286 | L161: 140 | M161: 1
B162: 141 | C162: =Urliste!C144 -> 5 | D162: 30 | E162: 0.2127659574 | F162: 27 | G162: 0.1914893617 | H162: 23 | I162: 0.1631205674 | J162: 61 | K162: 0.4326241135 | L162: 141 | M162: 1
B163: 142 | C163: =Urliste!C145 -> 3 | D163: 30 | E163: 0.2112676056 | F163: 27 | G163: 0.1901408451 | H163: 24 | I163: 0.1690140845 | J163: 61 | K163: 0.4295774648 | L163: 142 | M163: 1
B164: 143 | C164: =Urliste!C146 -> 5 | D164: 30 | E164: 0.2097902098 | F164: 27 | G164: 0.1888111888 | H164: 24 | I164: 0.1678321678 | J164: 62 | K164: 0.4335664336 | L164: 143 | M164: 1
B165: 144 | C165: =Urliste!C147 -> 3 | D165: 30 | E165: 0.2083333333 | F165: 27 | G165: 0.1875 | H165: 25 | I165: 0.1736111111 | J165: 62 | K165: 0.4305555556 | L165: 144 | M165: 1
B166: 145 | C166: =Urliste!C148 -> 6 | D166: 30 | E166: 0.2068965517 | F166: 27 | G166: 0.1862068966 | H166: 25 | I166: 0.1724137931 | J166: 63 | K166: 0.4344827586 | L166: 145 | M166: 1
B167: 146 | C167: =Urliste!C149 -> 2 | D167: 30 | E167: 0.2054794521 | F167: 28 | G167: 0.1917808219 | H167: 25 | I167: 0.1712328767 | J167: 63 | K167: 0.4315068493 | L167: 146 | M167: 1
B168: 147 | C168: =Urliste!C150 -> 1 | D168: 31 | E168: 0.2108843537 | F168: 28 | G168: 0.1904761905 | H168: 25 | I168: 0.1700680272 | J168: 63 | K168: 0.4285714286 | L168: 147 | M168: 1
B169: 148 | C169: =Urliste!C151 -> 5 | D169: 31 | E169: 0.2094594595 | F169: 28 | G169: 0.1891891892 | H169: 25 | I169: 0.1689189189 | J169: 64 | K169: 0.4324324324 | L169: 148 | M169: 1
B170: 149 | C170: =Urliste!C152 -> 5 | D170: 31 | E170: 0.2080536913 | F170: 28 | G170: 0.1879194631 | H170: 25 | I170: 0.1677852349 | J170: 65 | K170: 0.4362416107 | L170: 149 | M170: 1
B171: 150 | C171: =Urliste!C153 -> 4 | D171: 31 | E171: 0.2066666667 | F171: 28 | G171: 0.1866666667 | H171: 25 | I171: 0.1666666667 | J171: 66 | K171: 0.44 | L171: 150 | M171: 1
B172: 151 | C172: =Urliste!C154 -> 5 | D172: 31 | E172: 0.2052980132 | F172: 28 | G172: 0.1854304636 | H172: 25 | I172: 0.1655629139 | J172: 67 | K172: 0.4437086093 | L172: 151 | M172: 1
B173: 152 | C173: =Urliste!C155 -> 4 | D173: 31 | E173: 0.2039473684 | F173: 28 | G173: 0.1842105263 | H173: 25 | I173: 0.1644736842 | J173: 68 | K173: 0.4473684211 | L173: 152 | M173: 1
B174: 153 | C174: =Urliste!C156 -> 3 | D174: 31 | E174: 0.2026143791 | F174: 28 | G174: 0.1830065359 | H174: 26 | I174: 0.1699346405 | J174: 68 | K174: 0.4444444444 | L174: 153 | M174: 1
B175: 154 | C175: =Urliste!C157 -> 4 | D175: 31 | E175: 0.2012987013 | F175: 28 | G175: 0.1818181818 | H175: 26 | I175: 0.1688311688 | J175: 69 | K175: 0.4480519481 | L175: 154 | M175: 1
B176: 155 | C176: =Urliste!C158 -> 4 | D176: 31 | E176: 0.2 | F176: 28 | G176: 0.1806451613 | H176: 26 | I176: 0.1677419355 | J176: 70 | K176: 0.4516129032 | L176: 155 | M176: 1
B177: 156 | C177: =Urliste!C159 -> 1 | D177: 32 | E177: 0.2051282051 | F177: 28 | G177: 0.1794871795 | H177: 26 | I177: 0.1666666667 | J177: 70 | K177: 0.4487179487 | L177: 156 | M177: 1
B178: 157 | C178: =Urliste!C160 -> 4 | D178: 32 | E178: 0.2038216561 | F178: 28 | G178: 0.178343949 | H178: 26 | I178: 0.1656050955 | J178: 71 | K178: 0.4522292994 | L178: 157 | M178: 1
B179: 158 | C179: =Urliste!C161 -> 2 | D179: 32 | E179: 0.2025316456 | F179: 29 | G179: 0.1835443038 | H179: 26 | I179: 0.164556962 | J179: 71 | K179: 0.4493670886 | L179: 158 | M179: 1
B180: 159 | C180: =Urliste!C162 -> 2 | D180: 32 | E180: 0.2012578616 | F180: 30 | G180: 0.1886792453 | H180: 26 | I180: 0.1635220126 | J180: 71 | K180: 0.4465408805 | L180: 159 | M180: 1
B181: 160 | C181: =Urliste!C163 -> 6 | D181: 32 | E181: 0.2 | F181: 30 | G181: 0.1875 | H181: 26 | I181: 0.1625 | J181: 72 | K181: 0.45 | L181: 160 | M181: 1
B182: 161 | C182: =Urliste!C164 -> 4 | D182: 32 | E182: 0.198757764 | F182: 30 | G182: 0.1863354037 | H182: 26 | I182: 0.1614906832 | J182: 73 | K182: 0.4534161491 | L182: 161 | M182: 1
B183: 162 | C183: =Urliste!C165 -> 5 | D183: 32 | E183: 0.1975308642 | F183: 30 | G183: 0.1851851852 | H183: 26 | I183: 0.1604938272 | J183: 74 | K183: 0.4567901235 | L183: 162 | M183: 1
B184: 163 | C184: =Urliste!C166 -> 5 | D184: 32 | E184: 0.1963190184 | F184: 30 | G184: 0.1840490798 | H184: 26 | I184: 0.1595092025 | J184: 75 | K184: 0.4601226994 | L184: 163 | M184: 1
B185: 164 | C185: =Urliste!C167 -> 6 | D185: 32 | E185: 0.1951219512 | F185: 30 | G185: 0.1829268293 | H185: 26 | I185: 0.1585365854 | J185: 76 | K185: 0.4634146341 | L185: 164 | M185: 1
B186: 165 | C186: =Urliste!C168 -> 1 | D186: =IF(C186=1,D185+1,D185) -> 33 | E186: =D186/B186 -> 0.2 | F186: =IF(C186=2,F185+1,F185) -> 30 | G186: =F186/B186 -> 0.1818181818 | H186: 26 | I186: 0.1575757576 | J186: 76 | K186: 0.4606060606 | L186: 165 | M186: 1
B187: 166 | C187: =Urliste!C169 -> 2 | D187: 33 | E187: 0.1987951807 | F187: 31 | G187: 0.186746988 | H187: 26 | I187: 0.156626506 | J187: 76 | K187: 0.4578313253 | L187: 166 | M187: 1
B188: 167 | C188: =Urliste!C170 -> 3 | D188: 33 | E188: 0.1976047904 | F188: 31 | G188: 0.1856287425 | H188: 27 | I188: 0.1616766467 | J188: 76 | K188: 0.4550898204 | L188: 167 | M188: 1
B189: 168 | C189: =Urliste!C171 -> 3 | D189: 33 | E189: 0.1964285714 | F189: 31 | G189: 0.1845238095 | H189: 28 | I189: 0.1666666667 | J189: 76 | K189: 0.4523809524 | L189: 168 | M189: 1
B190: 169 | C190: =Urliste!C172 -> 5 | D190: 33 | E190: 0.1952662722 | F190: 31 | G190: 0.1834319527 | H190: 28 | I190: 0.1656804734 | J190: 77 | K190: 0.4556213018 | L190: 169 | M190: 1
B191: 170 | C191: =Urliste!C173 -> 5 | D191: 33 | E191: 0.1941176471 | F191: 31 | G191: 0.1823529412 | H191: 28 | I191: 0.1647058824 | J191: 78 | K191: 0.4588235294 | L191: 170 | M191: 1
B192: 171 | C192: =Urliste!C174 -> 5 | D192: 33 | E192: 0.1929824561 | F192: 31 | G192: 0.1812865497 | H192: 28 | I192: 0.1637426901 | J192: 79 | K192: 0.4619883041 | L192: 171 | M192: 1
B193: 172 | C193: =Urliste!C175 -> 1 | D193: 34 | E193: 0.1976744186 | F193: 31 | G193: 0.1802325581 | H193: 28 | I193: 0.1627906977 | J193: 79 | K193: 0.4593023256 | L193: 172 | M193: 1
B194: 173 | C194: =Urliste!C176 -> 6 | D194: 34 | E194: 0.1965317919 | F194: 31 | G194: 0.1791907514 | H194: 28 | I194: 0.161849711 | J194: 80 | K194: 0.4624277457 | L194: 173 | M194: 1
B195: 174 | C195: =Urliste!C177 -> 4 | D195: 34 | E195: 0.1954022989 | F195: 31 | G195: 0.1781609195 | H195: 28 | I195: 0.1609195402 | J195: 81 | K195: 0.4655172414 | L195: 174 | M195: 1
B196: 175 | C196: =Urliste!C178 -> 1 | D196: 35 | E196: 0.2 | F196: 31 | G196: 0.1771428571 | H196: 28 | I196: 0.16 | J196: 81 | K196: 0.4628571429 | L196: 175 | M196: 1
B197: 176 | C197: =Urliste!C179 -> 5 | D197: 35 | E197: 0.1988636364 | F197: 31 | G197: 0.1761363636 | H197: 28 | I197: 0.1590909091 | J197: 82 | K197: 0.4659090909 | L197: 176 | M197: 1
B198: 177 | C198: =Urliste!C180 -> 4 | D198: 35 | E198: 0.197740113 | F198: 31 | G198: 0.1751412429 | H198: 28 | I198: 0.1581920904 | J198: 83 | K198: 0.4689265537 | L198: 177 | M198: 1
B199: 178 | C199: =Urliste!C181 -> 1 | D199: 36 | E199: 0.202247191 | F199: 31 | G199: 0.1741573034 | H199: 28 | I199: 0.1573033708 | J199: 83 | K199: 0.4662921348 | L199: 178 | M199: 1
B200: 179 | C200: =Urliste!C182 -> 1 | D200: 37 | E200: 0.2067039106 | F200: 31 | G200: 0.1731843575 | H200: 28 | I200: 0.156424581 | J200: 83 | K200: 0.4636871508 | L200: 179 | M200: 1
B201: 180 | C201: =Urliste!C183 -> 5 | D201: 37 | E201: 0.2055555556 | F201: 31 | G201: 0.1722222222 | H201: 28 | I201: 0.1555555556 | J201: 84 | K201: 0.4666666667 | L201: 180 | M201: 1
B202: 181 | C202: =Urliste!C184 -> 2 | D202: 37 | E202: 0.2044198895 | F202: 32 | G202: 0.1767955801 | H202: 28 | I202: 0.1546961326 | J202: 84 | K202: 0.4640883978 | L202: 181 | M202: 1
B203: 182 | C203: =Urliste!C185 -> 5 | D203: 37 | E203: 0.2032967033 | F203: 32 | G203: 0.1758241758 | H203: 28 | I203: 0.1538461538 | J203: 85 | K203: 0.467032967 | L203: 182 | M203: 1
B204: 183 | C204: =Urliste!C186 -> 2 | D204: 37 | E204: 0.2021857923 | F204: 33 | G204: 0.1803278689 | H204: 28 | I204: 0.1530054645 | J204: 85 | K204: 0.4644808743 | L204: 183 | M204: 1
B205: 184 | C205: =Urliste!C187 -> 1 | D205: 38 | E205: 0.2065217391 | F205: 33 | G205: 0.1793478261 | H205: 28 | I205: 0.152173913 | J205: 85 | K205: 0.4619565217 | L205: 184 | M205: 1
B206: 185 | C206: =Urliste!C188 -> 4 | D206: 38 | E206: 0.2054054054 | F206: 33 | G206: 0.1783783784 | H206: 28 | I206: 0.1513513514 | J206: 86 | K206: 0.4648648649 | L206: 185 | M206: 1
B207: 186 | C207: =Urliste!C189 -> 1 | D207: 39 | E207: 0.2096774194 | F207: 33 | G207: 0.1774193548 | H207: 28 | I207: 0.1505376344 | J207: 86 | K207: 0.4623655914 | L207: 186 | M207: 1
B208: 187 | C208: =Urliste!C190 -> 2 | D208: 39 | E208: 0.2085561497 | F208: 34 | G208: 0.1818181818 | H208: 28 | I208: 0.1497326203 | J208: 86 | K208: 0.4598930481 | L208: 187 | M208: 1
B209: 188 | C209: =Urliste!C191 -> 3 | D209: 39 | E209: 0.2074468085 | F209: 34 | G209: 0.1808510638 | H209: 29 | I209: 0.1542553191 | J209: 86 | K209: 0.4574468085 | L209: 188 | M209: 1
B210: 189 | C210: =Urliste!C192 -> 4 | D210: 39 | E210: 0.2063492063 | F210: 34 | G210: 0.1798941799 | H210: 29 | I210: 0.1534391534 | J210: 87 | K210: 0.4603174603 | L210: 189 | M210: 1
B211: 190 | C211: =Urliste!C193 -> 1 | D211: 40 | E211: 0.2105263158 | F211: 34 | G211: 0.1789473684 | H211: 29 | I211: 0.1526315789 | J211: 87 | K211: 0.4578947368 | L211: 190 | M211: 1
B212: 191 | C212: =Urliste!C194 -> 5 | D212: 40 | E212: 0.2094240838 | F212: 34 | G212: 0.1780104712 | H212: 29 | I212: 0.1518324607 | J212: 88 | K212: 0.4607329843 | L212: 191 | M212: 1
B213: 192 | C213: =Urliste!C195 -> 4 | D213: 40 | E213: 0.2083333333 | F213: 34 | G213: 0.1770833333 | H213: 29 | I213: 0.1510416667 | J213: 89 | K213: 0.4635416667 | L213: 192 | M213: 1
B214: 193 | C214: =Urliste!C196 -> 5 | D214: 40 | E214: 0.207253886 | F214: 34 | G214: 0.1761658031 | H214: 29 | I214: 0.1502590674 | J214: 90 | K214: 0.4663212435 | L214: 193 | M214: 1
B215: 194 | C215: =Urliste!C197 -> 6 | D215: 40 | E215: 0.206185567 | F215: 34 | G215: 0.175257732 | H215: 29 | I215: 0.1494845361 | J215: 91 | K215: 0.4690721649 | L215: 194 | M215: 1
B216: 195 | C216: =Urliste!C198 -> 1 | D216: 41 | E216: 0.2102564103 | F216: 34 | G216: 0.1743589744 | H216: 29 | I216: 0.1487179487 | J216: 91 | K216: 0.4666666667 | L216: 195 | M216: 1
B217: 196 | C217: =Urliste!C199 -> 3 | D217: 41 | E217: 0.2091836735 | F217: 34 | G217: 0.1734693878 | H217: 30 | I217: 0.1530612245 | J217: 91 | K217: 0.4642857143 | L217: 196 | M217: 1
B218: 197 | C218: =Urliste!C200 -> 4 | D218: 41 | E218: 0.2081218274 | F218: 34 | G218: 0.1725888325 | H218: =IF(C218=3,H217+1,H217) -> 30 | I218: =H218/B218 -> 0.152284264 | J218: =IF(C218>3,J217+1,J217) -> 92 | K218: =J218/B218 -> 0.4670050761 | L218: =SUM(D218,J218,H218,F218) -> 197 | M218: =SUM(K218,I218,G218,E218) -> 1
... 4282 more rows

Sheet Urliste
B3: n | C3: Würfel- ergebnis | E3: n | F3: Würfel- ergebnis | I3: Schritte 1. - 5. können per Makro durchgeführt werden mit Tastenkombination: STRG +N
B4: 1 | C4: 1 | E4: 1 | F4: =RANDBETWEEN(1,6) -> 4
B5: 2 | C5: 1 | E5: 2 | F5: =RANDBETWEEN(1,6) -> 2
B6: 3 | C6: 1 | E6: 3 | F6: 1
B7: 4 | C7: 3 | E7: 4 | F7: 2
B8: 5 | C8: 5 | E8: 5 | F8: 5
B9: 6 | C9: 6 | E9: 6 | F9: 3
B10: 7 | C10: 6 | E10: 7 | F10: 3
B11: 8 | C11: 6 | E11: 8 | F11: 1
B12: 9 | C12: 2 | E12: 9 | F12: 6
B13: 10 | C13: 2 | E13: 10 | F13: 1
B14: 11 | C14: 6 | E14: 11 | F14: 1
B15: 12 | C15: 1 | E15: 12 | F15: 6
B16: 13 | C16: 1 | E16: 13 | F16: 4
B17: 14 | C17: 3 | E17: 14 | F17: 5
B18: 15 | C18: 5 | E18: 15 | F18: 6
B19: 16 | C19: 5 | E19: 16 | F19: 6
B20: 17 | C20: 2 | E20: 17 | F20: 1
B21: 18 | C21: 1 | E21: 18 | F21: 1
B22: 19 | C22: 6 | E22: 19 | F22: 1
B23: 20 | C23: 1 | E23: 20 | F23: 1
B24: 21 | C24: 4 | E24: 21 | F24: 2
B25: 22 | C25: 2 | E25: 22 | F25: 4
B26: 23 | C26: 2 | E26: 23 | F26: 1
B27: 24 | C27: 6 | E27: 24 | F27: 3
B28: 25 | C28: 3 | E28: 25 | F28: 4
B29: 26 | C29: 3 | E29: 26 | F29: 2
B30: 27 | C30: 4 | E30: 27 | F30: 6
B31: 28 | C31: 4 | E31: 28 | F31: 2
B32: 29 | C32: 4 | E32: 29 | F32: 2
B33: 30 | C33: 5 | E33: 30 | F33: 2
B34: 31 | C34: 3 | E34: 31 | F34: 2
B35: 32 | C35: 3 | E35: 32 | F35: 6
B36: 33 | C36: 3 | E36: 33 | F36: 2
B37: 34 | C37: 2 | E37: 34 | F37: 1
B38: 35 | C38: 4 | E38: 35 | F38: 6
B39: 36 | C39: 5 | E39: 36 | F39: 1
B40: 37 | C40: 5 | E40: 37 | F40: 5
B41: 38 | C41: 2 | E41: 38 | F41: 1
B42: 39 | C42: 2 | E42: 39 | F42: 4
B43: 40 | C43: 5 | E43: 40 | F43: 1
B44: 41 | C44: 1 | E44: 41 | F44: 5
B45: 42 | C45: 1 | E45: 42 | F45: 3
B46: 43 | C46: 3 | E46: 43 | F46: 2
B47: 44 | C47: 6 | E47: 44 | F47: 3
B48: 45 | C48: 6 | E48: 45 | F48: 3
B49: 46 | C49: 1 | E49: 46 | F49: 6
B50: 47 | C50: 3 | E50: 47 | F50: 5
B51: 48 | C51: 1 | E51: 48 | F51: 2
B52: 49 | C52: 3 | E52: 49 | F52: 6
B53: 50 | C53: 4 | E53: 50 | F53: 1
B54: 51 | C54: 3 | E54: 51 | F54: 4
B55: 52 | C55: 1 | E55: 52 | F55: 6
B56: 53 | C56: 4 | E56: 53 | F56: 6
B57: 54 | C57: 1 | E57: 54 | F57: 3
B58: 55 | C58: 1 | E58: 55 | F58: 3
B59: 56 | C59: 4 | E59: 56 | F59: 3
B60: 57 | C60: 2 | E60: 57 | F60: 5
B61: 58 | C61: 5 | E61: 58 | F61: 6
B62: 59 | C62: 1 | E62: 59 | F62: 6
B63: 60 | C63: 1 | E63: 60 | F63: 5
B64: 61 | C64: 1 | E64: 61 | F64: 1
B65: 62 | C65: 4 | E65: 62 | F65: 4
B66: 63 | C66: 4 | E66: 63 | F66: 3
B67: 64 | C67: 1 | E67: 64 | F67: 2
B68: 65 | C68: 6 | E68: 65 | F68: 4
B69: 66 | C69: 5 | E69: 66 | F69: =RANDBETWEEN(1,6) -> 2
B70: 67 | C70: 5 | E70: 67 | F70: 3
B71: 68 | C71: 4 | E71: 68 | F71: 4
B72: 69 | C72: 2 | E72: 69 | F72: 4
B73: 70 | C73: 2 | E73: 70 | F73: 3
B74: 71 | C74: 3 | E74: 71 | F74: 1
B75: 72 | C75: 5 | E75: 72 | F75: 4
B76: 73 | C76: 4 | E76: 73 | F76: 3
B77: 74 | C77: 4 | E77: 74 | F77: 1
B78: 75 | C78: 2 | E78: 75 | F78: 4
B79: 76 | C79: 6 | E79: 76 | F79: 5
B80: 77 | C80: 1 | E80: 77 | F80: 4
B81: 78 | C81: 2 | E81: 78 | F81: 5
B82: 79 | C82: 1 | E82: 79 | F82: 2
B83: 80 | C83: 5 | E83: 80 | F83: 4
B84: 81 | C84: 6 | E84: 81 | F84: 2
B85: 82 | C85: 4 | E85: 82 | F85: 1
B86: 83 | C86: 2 | E86: 83 | F86: 5
B87: 84 | C87: 2 | E87: 84 | F87: 2
B88: 85 | C88: 1 | E88: 85 | F88: 3
B89: 86 | C89: 2 | E89: 86 | F89: 2
B90: 87 | C90: 5 | E90: 87 | F90: 1
B91: 88 | C91: 3 | E91: 88 | F91: 1
B92: 89 | C92: 5 | E92: 89 | F92: 6
B93: 90 | C93: 6 | E93: 90 | F93: 1
B94: 91 | C94: 6 | E94: 91 | F94: 1
B95: 92 | C95: 3 | E95: 92 | F95: 1
B96: 93 | C96: 6 | E96: 93 | F96: 2
B97: 94 | C97: 2 | E97: 94 | F97: 5
B98: 95 | C98: 3 | E98: 95 | F98: 2
B99: 96 | C99: 3 | E99: 96 | F99: 1
B100: 97 | C100: 1 | E100: 97 | F100: 3
B101: 98 | C101: 1 | E101: 98 | F101: 3
B102: 99 | C102: 6 | E102: 99 | F102: 6
B103: 100 | C103: 5 | E103: 100 | F103: 6
B104: 101 | C104: 6 | E104: 101 | F104: 3
B105: 102 | C105: 1 | E105: 102 | F105: 5
B106: 103 | C106: 1 | E106: 103 | F106: 2
B107: 104 | C107: 1 | E107: 104 | F107: 6
B108: 105 | C108: 3 | E108: 105 | F108: 6
B109: 106 | C109: 1 | E109: 106 | F109: 4
B110: 107 | C110: 4 | E110: 107 | F110: 1
B111: 108 | C111: 5 | E111: 108 | F111: 5
B112: 109 | C112: 4 | E112: 109 | F112: 5
B113: 110 | C113: 3 | E113: 110 | F113: 1
B114: 111 | C114: 4 | E114: 111 | F114: 5
B115: 112 | C115: 2 | E115: 112 | F115: 6
B116: 113 | C116: 1 | E116: 113 | F116: 2
B117: 114 | C117: 3 | E117: 114 | F117: 4
B118: 115 | C118: 6 | E118: 115 | F118: 1
B119: 116 | C119: 6 | E119: 116 | F119: 2
B120: 117 | C120: 2 | E120: 117 | F120: 6
B121: 118 | C121: 2 | E121: 118 | F121: 4
B122: 119 | C122: 2 | E122: 119 | F122: 6
B123: 120 | C123: 4 | E123: 120 | F123: 6
B124: 121 | C124: 3 | E124: 121 | F124: 1
B125: 122 | C125: 2 | E125: 122 | F125: 1
B126: 123 | C126: 2 | E126: 123 | F126: 3
B127: 124 | C127: 5 | E127: 124 | F127: 2
B128: 125 | C128: 4 | E128: 125 | F128: 6
B129: 126 | C129: 4 | E129: 126 | F129: 5
B130: 127 | C130: 2 | E130: 127 | F130: 6
B131: 128 | C131: 6 | E131: 128 | F131: 1
B132: 129 | C132: 2 | E132: 129 | F132: 1
B133: 130 | C133: 6 | E133: 130 | F133: =RANDBETWEEN(1,6) -> 5
B134: 131 | C134: 1 | E134: 131 | F134: 2
B135: 132 | C135: 3 | E135: 132 | F135: 5
B136: 133 | C136: 3 | E136: 133 | F136: 5
B137: 134 | C137: 4 | E137: 134 | F137: 1
B138: 135 | C138: 3 | E138: 135 | F138: 5
B139: 136 | C139: 2 | E139: 136 | F139: 6
B140: 137 | C140: 1 | E140: 137 | F140: 2
B141: 138 | C141: 5 | E141: 138 | F141: 5
B142: 139 | C142: 2 | E142: 139 | F142: 3
B143: 140 | C143: 4 | E143: 140 | F143: 2
B144: 141 | C144: 5 | E144: 141 | F144: 4
B145: 142 | C145: 3 | E145: 142 | F145: 2
B146: 143 | C146: 5 | E146: 143 | F146: 5
B147: 144 | C147: 3 | E147: 144 | F147: 5
B148: 145 | C148: 6 | E148: 145 | F148: 5
B149: 146 | C149: 2 | E149: 146 | F149: 5
B150: 147 | C150: 1 | E150: 147 | F150: 5
B151: 148 | C151: 5 | E151: 148 | F151: 1
B152: 149 | C152: 5 | E152: 149 | F152: 5
B153: 150 | C153: 4 | E153: 150 | F153: 5
B154: 151 | C154: 5 | E154: 151 | F154: 2
B155: 152 | C155: 4 | E155: 152 | F155: 3
B156: 153 | C156: 3 | E156: 153 | F156: 4
B157: 154 | C157: 4 | E157: 154 | F157: 4
B158: 155 | C158: 4 | E158: 155 | F158: 6
B159: 156 | C159: 1 | E159: 156 | F159: 5
B160: 157 | C160: 4 | E160: 157 | F160: 4
B161: 158 | C161: 2 | E161: 158 | F161: 1
B162: 159 | C162: 2 | E162: 159 | F162: 6
B163: 160 | C163: 6 | E163: 160 | F163: 1
B164: 161 | C164: 4 | E164: 161 | F164: 2
B165: 162 | C165: 5 | E165: 162 | F165: 1
B166: 163 | C166: 5 | E166: 163 | F166: 6
B167: 164 | C167: 6 | E167: 164 | F167: 2
B168: 165 | C168: 1 | E168: 165 | F168: 6
B169: 166 | C169: 2 | E169: 166 | F169: 4
B170: 167 | C170: 3 | E170: 167 | F170: 4
B171: 168 | C171: 3 | E171: 168 | F171: 2
B172: 169 | C172: 5 | E172: 169 | F172: 3
B173: 170 | C173: 5 | E173: 170 | F173: 6
B174: 171 | C174: 5 | E174: 171 | F174: 1
B175: 172 | C175: 1 | E175: 172 | F175: 1
B176: 173 | C176: 6 | E176: 173 | F176: 6
B177: 174 | C177: 4 | E177: 174 | F177: 3
B178: 175 | C178: 1 | E178: 175 | F178: 1
B179: 176 | C179: 5 | E179: 176 | F179: 2
B180: 177 | C180: 4 | E180: 177 | F180: 2
B181: 178 | C181: 1 | E181: 178 | F181: 1
B182: 179 | C182: 1 | E182: 179 | F182: 4
B183: 180 | C183: 5 | E183: 180 | F183: 2
B184: 181 | C184: 2 | E184: 181 | F184: 4
B185: 182 | C185: 5 | E185: 182 | F185: 2
B186: 183 | C186: 2 | E186: 183 | F186: 5
B187: 184 | C187: 1 | E187: 184 | F187: 5
B188: 185 | C188: 4 | E188: 185 | F188: 3
B189: 186 | C189: 1 | E189: 186 | F189: 1
B190: 187 | C190: 2 | E190: 187 | F190: 5
B191: 188 | C191: 3 | E191: 188 | F191: 1
B192: 189 | C192: 4 | E192: 189 | F192: 1
B193: 190 | C193: 1 | E193: 190 | F193: 3
B194: 191 | C194: 5 | E194: 191 | F194: 6
B195: 192 | C195: 4 | E195: 192 | F195: 1
B196: 193 | C196: 5 | E196: 193 | F196: 6
B197: 194 | C197: 6 | E197: 194 | F197: =RANDBETWEEN(1,6) -> 1
B198: 195 | C198: 1 | E198: 195 | F198: 4
B199: 196 | C199: 3 | E199: 196 | F199: 4
B200: 197 | C200: 4 | E200: 197 | F200: 3
B201: 198 | C201: 1 | E201: 198 | F201: 5
B202: 199 | C202: 5 | E202: 199 | F202: 4
... 9801 more rows
